fUST/lending_fUST_20250621
["ID","MTS","AMOUNT","RATE_DAILY","PERIOD"]
[366797840,1750462246132,-460.0,0.00021917,2]
[366797842,1750462246141,-460.0,0.00021917,2]
[366797844,1750462246152,-460.0,0.00021917,2]
[366797845,1750462246162,-697.01,0.00021917,2]
[366797847,1750462246171,-460.0,0.00021917,2]
[366797849,1750462246181,-514.63,0.00021917,2]
[366797851,1750462246191,-460.0,0.00021917,2]
[366797853,1750462246201,-460.0,0.00021917,2]
[366797855,1750462246210,-460.0,0.00021917,2]
[366797857,1750462246219,-460.0,0.00021917,2]
[366797859,1750462246229,-440.0,0.00021917,2]
[366797861,1750462246238,-460.0,0.00021917,2]
[366797863,1750462246248,-235.94504447,0.00021917,2]
[366797865,1750462246257,-788.37,0.00021917,2]
[366797866,1750462246267,-460.0,0.00021917,2]
[366797868,1750462246280,-460.0,0.00021917,2]
[366797870,1750462246290,-460.0,0.00021917,2]
[366797872,1750462246299,-460.0,0.00021917,2]
[366797874,1750462246309,-460.0,0.00021917,2]
[366797876,1750462246318,-460.0,0.00021917,2]
[366797878,1750462246327,-1035.08,0.00021917,2]
[366797880,1750462246337,-460.0,0.00021917,2]
[366797882,1750462246347,-3000.0,0.0002192,2]
[366797884,1750462246356,-500.0,0.00021929,2]
[366797885,1750462246367,-3000.0,0.0002193,2]
[366797887,1750462246377,-473.02561936,0.0002194,2]
[366797889,1750462246387,-3000.0,0.0002194,2]
[366797891,1750462246397,-3000.0,0.0002195,2]
[366797893,1750462246407,-3000.0,0.0002196,2]
[366797895,1750462246417,-3150.0,0.0002197,2]
[366797897,1750462246426,-574.2153043,0.00021973,2]
[366797898,1750462246436,-177.1504183,0.00021973,2]
[366797900,1750462246447,-188.66,0.00022,2]
[366797902,1750462246457,-9838.40670332,0.00022,2]
[366797904,1750462246468,-351.48959002,0.00022,2]
[366797906,1750462246478,-161.88621219,0.00022,2]
[366797908,1750462246488,-1740.63291236,0.00022038,6]
[366797910,1750462246497,-1740.63291236,0.00022176,6]
[366797912,1750462246507,-421.88915428,0.00022191,2]
[366797914,1750462246516,-460.0,0.00022191,2]
[366797916,1750462246525,-460.0,0.00022191,2]
[366797918,1750462246534,-460.0,0.00022191,2]
[366797920,1750462246544,-460.0,0.00022191,2]
[366797922,1750462246553,-460.0,0.00022191,2]
[366797923,1750462246564,-454.1722236,0.00022191,2]
[366797925,1750462246573,-460.0,0.00022191,2]
[366797927,1750462246583,-195.82,0.00022191,2]
[366797929,1750462246593,-460.0,0.00022191,2]
[366797931,1750462246602,-460.0,0.00022191,2]
[366797933,1750462246611,-454.06,0.00022191,2]
[366797935,1750462246621,-460.0,0.00022191,2]
[366797937,1750462246630,-697.01,0.00022191,2]
[366797939,1750462246640,-460.0,0.00022191,2]
[366797941,1750462246649,-514.63,0.00022191,2]
[366797943,1750462246659,-460.0,0.00022191,2]
[366797945,1750462246669,-460.0,0.00022191,2]
[366797947,1750462246678,-460.0,0.00022191,2]
[366797949,1750462246692,-460.0,0.00022191,2]
[366797951,1750462246702,-460.0,0.00022191,2]
[366797952,1750462246711,-788.37,0.00022191,2]
[366797954,1750462246721,-460.0,0.00022191,2]
[366797956,1750462246731,-460.0,0.00022191,2]
[366797958,1750462246741,-460.0,0.00022191,2]
[366797960,1750462246750,-460.0,0.00022191,2]
[366797962,1750462246760,-460.0,0.00022191,2]
[366797964,1750462246770,-1035.08,0.00022191,2]
[366797966,1750462246781,-460.0,0.00022191,2]
[366797968,1750462246791,-1740.63291236,0.00022314,7]
[366797970,1750462246802,-160.0,0.0002234,2]
[366797972,1750462246813,-160.0,0.0002234,2]
[366797974,1750462246823,-213.51557418,0.00022343,2]
[366797976,1750462246833,-12546.90244252,0.00022343,2]
[366797978,1750462246843,-307.77842607,0.00022365,2]
[366797980,1750462246854,-500.0,0.00022376,7]
[366797982,1750462246865,-543.21913824,0.00022393,2]
[366797984,1750462246876,-160.0,0.00022393,2]
[366797986,1750462246886,-354.3008366,0.00022438,2]
[366797988,1750462246896,-306.0,0.00022438,2]
[366797990,1750462246906,-317.9207075,0.00022438,2]
[366797992,1750462246916,-574.2153043,0.00022438,2]
[366797994,1750462246926,-346.9248725,0.00022438,2]
[366797996,1750462246935,-159.0517633,0.00022438,2]
[366797998,1750462246945,-354.3008366,0.00022438,2]
[366798000,1750462246955,-1148.4306086,0.00022438,2]
[366798002,1750462246964,-1740.63291236,0.00022452,7]
[366798003,1750462246974,-460.0,0.00022465,2]
[366798005,1750462246983,-460.0,0.00022465,2]
[366798007,1750462246992,-460.0,0.00022465,2]
[366798009,1750462247002,-460.0,0.00022465,2]
[366798011,1750462247011,-460.0,0.00022465,2]
[366798013,1750462247021,-460.0,0.00022465,2]
[366798015,1750462247030,-460.0,0.00022465,2]
[366798017,1750462247039,-380.73313665,0.00022465,2]
[366798019,1750462247049,-460.0,0.00022465,2]
[366798021,1750462247058,-697.01,0.00022465,2]
[366798023,1750462247067,-460.0,0.00022465,2]
[366798025,1750462247077,-514.63,0.00022465,2]
[366798027,1750462247086,-460.0,0.00022465,2]
[366798029,1750462247096,-460.0,0.00022465,2]
[366798031,1750462247105,-460.0,0.00022465,2]
[366798032,1750462247114,-460.0,0.00022465,2]
[366798034,1750462247124,-460.0,0.00022465,2]
[366798036,1750462247133,-788.37,0.00022465,2]
[366798038,1750462247143,-460.0,0.00022465,2]
[366798040,1750462247153,-460.0,0.00022465,2]
[366798042,1750462247163,-460.0,0.00022465,2]
[366798044,1750462247173,-432.16,0.00022465,2]
[366798046,1750462247183,-460.0,0.00022465,2]
[366798048,1750462247195,-1035.08,0.00022465,2]
[366798050,1750462247204,-460.0,0.00022465,2]
[366798052,1750462247216,-420.0,0.00022543,2]
[366798054,1750462247226,-420.0,0.00022543,2]
[366798056,1750462247235,-173.0,0.00022568,2]
[366798058,1750462247245,-1740.63291236,0.0002259,7]
[366798060,1750462247256,-173.0,0.00022615,2]
[366798062,1750462247266,-5000.0,0.00022633,2]
[366798063,1750462247275,-207.4,0.00022633,2]
[366798065,1750462247285,-173.0,0.00022678,2]
[366798067,1750462247295,-559.04,0.0002269,3]
[366798069,1750462247305,-27878.40534111,0.000227,2]
[366798071,1750462247315,-307.77842606,0.00022708,2]
[366798073,1750462247324,-1740.63291236,0.00022728,7]
[366798075,1750462247334,-375.28339436,0.0002273,2]
[366798077,1750462247343,-460.0,0.00022739,2]
[366798079,1750462247356,-460.0,0.00022739,2]
[366798081,1750462247365,-460.0,0.00022739,2]
[366798083,1750462247376,-460.0,0.00022739,2]
[366798085,1750462247386,-460.0,0.00022739,2]
[366798087,1750462247395,-460.0,0.00022739,2]
[366798089,1750462247404,-460.0,0.00022739,2]
[366798091,1750462247413,-460.0,0.00022739,2]
[366798093,1750462247423,-697.01,0.00022739,2]
[366798095,1750462247433,-275.2752763,0.00022739,2]
[366798097,1750462247443,-514.63,0.00022739,2]
[366798099,1750462247453,-297.1743431,0.00022739,2]
[366798101,1750462247462,-460.0,0.00022739,2]
[366798103,1750462247471,-460.0,0.00022739,2]
[366798105,1750462247482,-460.0,0.00022739,2]
[366798107,1750462247491,-788.37,0.00022739,2]
[366798109,1750462247501,-460.0,0.00022739,2]
[366798110,1750462247512,-158.65854959,0.00022739,2]
[366798112,1750462247522,-512.51564021,0.00022739,2]
[366798114,1750462247532,-460.0,0.00022739,2]
[366798115,1750462247541,-1035.08,0.00022739,2]
[366798116,1750462247551,-460.0,0.00022739,2]
[366798117,1750462247562,-500.0,0.00022773,2]
[366798118,1750462247573,-571.91904621,0.00022773,2]
[366798119,1750462247584,-500.0,0.00022773,2]
[366798120,1750462247594,-500.0,0.00022773,2]
[366798121,1750462247604,-500.0,0.00022773,2]
[366798122,1750462247615,-151.0,0.00022794,2]
[366798123,1750462247625,-151.0,0.00022794,2]
[366798124,1750462247635,-151.0,0.00022794,2]
[366798125,1750462247645,-151.0,0.00022794,2]
[366798126,1750462247655,-125586.04414008,0.000228,2]
[366803140,1750462468171,200.0,0.00022383,30]
[366803141,1750462468894,200.0,0.00022657,30]
[366803142,1750462469151,200.0,0.00022931,30]
[366803144,1750462706905,-180.0,0.00021232,2]
[366803145,1750462706933,-500.0,0.00021232,2]
[366803146,1750462706957,-420.0,0.00021232,2]
[366803147,1750462706983,-300.0,0.00021232,2]
[366803148,1750462707006,-300.0,0.00021232,2]
[366803149,1750462707028,-846.08887863,0.00021233,2]
[366803150,1750462707051,-213.51557418,0.00021233,2]
[366803151,1750462707074,-12546.90244252,0.00021233,2]
[366803152,1750462707096,-836.27303475,0.00021233,2]
[366803153,1750462707117,-424.85694595,0.00021233,2]
[366803154,1750462707139,-160.0,0.00021233,2]
[366803155,1750462707160,-160.0,0.00021233,2]
[366803156,1750462707182,-230.06456406,0.00021233,2]
[366803157,1750462707205,-155.086,0.00021233,2]
[366803158,1750462707229,-16727.21255991,0.00021451,2]
[366803192,1750463432129,-254.87,0.00021168,2]
[366803247,1750463432671,-45.13,0.00021168,2]
[366803249,1750463432681,-16361.83432077,0.00021169,2]
[366803355,1750463438079,-2314.72670588,0.00021169,2]
[366803358,1750463438092,-336.26733391,0.00021169,2]
[366803360,1750463438104,-1567.3008456,0.00021169,2]
[366803362,1750463438116,-617.98410226,0.00021169,2]
[366803464,1750463440373,-383.112,0.00021169,2]
[366803683,1750463446223,-3318.77469158,0.00021169,2]
[366803685,1750463446233,-163.325418,0.00021188,2]
[366803687,1750463446243,-424.85694595,0.00021447,2]
[366803689,1750463446253,-160.0,0.00021447,2]
[366803690,1750463446263,-836.27303475,0.00021447,2]
[366803692,1750463446273,-160.0,0.00021448,2]
[366803694,1750463446282,-300.0,0.0002145,2]
[366803696,1750463446291,-246.49975659,0.00021819,2]
[366803698,1750463446301,-862.56,0.00021917,2]
[366803700,1750463446311,-460.0,0.00021917,2]
[366803702,1750463446321,-460.0,0.00021917,2]
[366803704,1750463446331,-160.0,0.00022148,2]
[366803706,1750463446340,-160.0,0.0002219,2]
[366803708,1750463446349,-460.0,0.0002219,2]
[366803710,1750463446359,-460.0,0.0002219,2]
[366803724,1750463446496,-460.0,0.0002219,2]
[366803726,1750463446507,-656.97,0.0002219,2]
[366803728,1750463446517,-373.30159438,0.0002219,2]
[366803730,1750463446526,-460.0,0.0002219,2]
[366803732,1750463446535,-460.0,0.0002219,2]
[366803733,1750463446544,-460.0,0.0002219,2]
[366803735,1750463446553,-460.0,0.0002219,2]
[366803738,1750463446564,-460.0,0.0002219,2]
[366803739,1750463446573,-580.84,0.0002219,2]
[366803741,1750463446583,-460.0,0.0002219,2]
[366803743,1750463446593,-460.0,0.0002219,2]
[366803745,1750463446602,-460.0,0.0002219,2]
[366803747,1750463446612,-862.56,0.00022191,2]
[366803749,1750463446621,-460.0,0.00022191,2]
[366803751,1750463446633,-460.0,0.00022191,2]
[366803753,1750463446645,-169.8,0.000222,2]
[366803755,1750463446655,-319.0,0.00022227,2]
[366803757,1750463446664,-168.0,0.00022263,2]
[366803759,1750463446673,-407.2655665,0.00022405,2]
[366803761,1750463446683,-319.0,0.0002241,2]
[366803763,1750463446692,-500.0,0.00022463,2]
[366803765,1750463446701,-186.49050856,0.00022463,2]
[366803767,1750463446710,-500.0,0.00022463,2]
[366803768,1750463446719,-417.9876161,0.00022463,2]
[366803770,1750463446729,-159.133,0.00022464,2]
[366803772,1750463446739,-460.0,0.00022464,2]
[366803774,1750463446749,-460.0,0.00022464,2]
[366803776,1750463446759,-460.0,0.00022464,2]
[366803778,1750463446769,-656.97,0.00022464,2]
[366803780,1750463446779,-460.0,0.00022464,2]
[366803782,1750463446788,-599.92,0.00022464,2]
[366803784,1750463446798,-460.0,0.00022464,2]
[366803786,1750463446807,-460.0,0.00022464,2]
[366803787,1750463446817,-460.0,0.00022464,2]
[366803789,1750463446826,-580.84,0.00022464,2]
[366803791,1750463446836,-460.0,0.00022464,2]
[366803793,1750463446845,-460.0,0.00022464,2]
[366803795,1750463446854,-460.0,0.00022464,2]
[366803797,1750463446863,-862.56,0.00022465,2]
[366803799,1750463446873,-460.0,0.00022465,2]
[366803800,1750463446882,-460.0,0.00022465,2]
[366803802,1750463446891,-319.0,0.00022477,2]
[366803804,1750463446901,-554.66825913,0.00022633,2]
[366803806,1750463446910,-5000.0,0.00022633,2]
[366803808,1750463446920,-207.4,0.00022633,2]
[366803810,1750463446930,-184.66705566,0.000227,2]
[366803812,1750463446940,-453.2312045,0.00022712,2]
[366803814,1750463446950,-809.52441833,0.00022735,2]
[366803816,1750463446960,-460.0,0.00022738,2]
[366803818,1750463446969,-211.17,0.00022738,2]
[366803820,1750463446979,-460.0,0.00022738,2]
[366803822,1750463446989,-656.97,0.00022738,2]
[366803824,1750463446998,-460.0,0.00022738,2]
[366803826,1750463447007,-363.17,0.00022738,2]
[366803827,1750463447017,-460.0,0.00022738,2]
[366803831,1750463447038,-460.0,0.00022738,2]
[366803833,1750463447049,-580.84,0.00022738,2]
[366803835,1750463447059,-460.0,0.00022738,2]
[366803837,1750463447070,-460.0,0.00022738,2]
[366803839,1750463447080,-460.0,0.00022738,2]
[366803841,1750463447090,-862.56,0.00022739,2]
[366803843,1750463447099,-553.42,0.00022739,2]
[366803845,1750463447110,-460.0,0.00022739,2]
[366803847,1750463447120,-319.0,0.00022772,2]
[366803849,1750463447129,-525.17942262,0.00022773,2]
[366803851,1750463447139,-500.0,0.00022773,2]
[366803852,1750463447149,-500.0,0.00022773,2]
[366803853,1750463447159,-500.0,0.00022773,2]
[366803854,1750463447168,-500.0,0.00022773,2]
[366803855,1750463447178,-505.78641955,0.00022773,2]
[366803856,1750463447188,-151.0,0.00022794,2]
[366803857,1750463447198,-500.0,0.00022799,7]
[366803858,1750463447208,-9017.79654152,0.000228,2]
[366803859,1750463447224,-7440.36245798,0.000228,2]
[366803872,1750463447370,-2207.81909457,0.000228,2]
[366803891,1750463472086,163.554419,0.00013699,2]
[366803904,1750463847839,3288.99,0.00025039,60]
[366803905,1750463922406,2359.42313728,0.00025039,60]
[366803908,1750464031836,200.0,0.00024591,120]
[366803923,1750464331959,200.0,0.00024195,120]
[366803925,1750464415135,751.0,0.00024658,120]
[366803929,1750464491465,163.554419,0.00013699,2]
[366803933,1750464511383,200.0,0.00023773,120]
[366803986,1750464632302,-168.873896,0.00020929,2]
[366803988,1750464632312,-300.0,0.00020932,2]
[366803990,1750464632322,-300.0,0.00020932,2]
[366803992,1750464632332,-300.0,0.00020932,2]
[366803994,1750464632342,-300.0,0.00020932,2]
[366803995,1750464632351,-152.95923453,0.00020932,2]
[366803997,1750464632361,-200.0,0.00020932,2]
[366803999,1750464632370,-24900.0,0.00020933,2]
[366804002,1750464632380,-223.54455735,0.000218,2]
[366804004,1750464632390,-183.99891248,0.00021814,2]
[366804006,1750464632400,-3000.0,0.000219,2]
[366804007,1750464632410,-1600.87714528,0.000219,6]
[366804009,1750464632419,-207.4,0.00021904,2]
[366804011,1750464632429,-3000.0,0.0002191,2]
[366804013,1750464632439,-300.0,0.00021914,2]
[366804015,1750464632448,-400.0,0.00021917,2]
[366804017,1750464632457,-460.0,0.00021917,2]
[366804019,1750464632467,-460.0,0.00021917,2]
[366804021,1750464632476,-3000.0,0.0002192,2]
[366804023,1750464632486,-3000.0,0.0002193,2]
[366804025,1750464632495,-500.0,0.00021938,2]
[366804027,1750464632505,-580.89403949,0.00021938,2]
[366804029,1750464632515,-460.0,0.00021939,2]
[366804031,1750464632525,-460.0,0.00021939,2]
[366804047,1750464632684,-460.0,0.00021939,2]
[366804049,1750464632694,-460.0,0.00021939,2]
[366804051,1750464632704,-460.0,0.00021939,2]
[366804053,1750464632714,-460.0,0.00021939,2]
[366804055,1750464632724,-460.0,0.00021939,2]
[366804057,1750464632733,-460.0,0.00021939,2]
[366804059,1750464632743,-357.87063166,0.00021939,2]
[366804060,1750464632753,-508.24,0.00021939,2]
[366804062,1750464632763,-460.0,0.00021939,2]
[366804063,1750464632773,-3000.0,0.0002194,2]
[366804064,1750464632782,-2471.63798636,0.00021944,2]
[366804067,1750464632811,-2528.36201364,0.00021944,2]
[366804068,1750464632820,-460.0,0.00021947,2]
[366804069,1750464632832,-460.0,0.00021947,2]
[366804070,1750464632842,-460.0,0.00021947,2]
[366804071,1750464632851,-460.0,0.00021947,2]
[366804072,1750464632860,-460.0,0.00021947,2]
[366804073,1750464632871,-574.85,0.00021948,2]
[366804074,1750464632880,-460.0,0.00021948,2]
[366804075,1750464632889,-300.0,0.00021948,2]
[366804076,1750464632899,-460.0,0.00021948,2]
[366804077,1750464632908,-460.0,0.00021948,2]
[366804078,1750464632919,-460.0,0.00021948,2]
[366804079,1750464632928,-460.0,0.00021949,2]
[366804080,1750464632937,-718.8,0.00021949,2]
[366804081,1750464632947,-480.67944236,0.0002195,2]
[366804082,1750464632959,-255.57243791,0.0002195,2]
[366804096,1750464638338,-453.67243545,0.0002195,2]
[366804097,1750464638350,-1810.07568428,0.0002195,2]
[366804098,1750464638360,-159.133,0.0002195,2]
[366804099,1750464638369,-238.35071656,0.0002196,2]
[366804100,1750464638382,-2761.64928344,0.0002196,2]
[366804101,1750464638392,-768.71355583,0.0002197,2]
[366804421,1750464643391,-460.0,0.00021948,2]
[366804423,1750464643403,-2231.28644417,0.0002197,2]
[366804425,1750464643414,-3000.0,0.0002198,2]
[366804427,1750464643424,-3000.0,0.0002199,2]
[366804429,1750464643434,-3000.0,0.00022,2]
[366804431,1750464643444,-2326.32355583,0.0002201,2]
[366804433,1750464643456,-673.67644417,0.0002201,2]
[366804435,1750464643466,-1764.45471238,0.0002202,2]
[366804647,1750464646403,-460.0,0.00021939,2]
[366804648,1750464646414,-1235.54528762,0.0002202,2]
[366804649,1750464646425,-3000.0,0.0002203,2]
[366804650,1750464646435,-1600.87714527,0.00022038,6]
[366804651,1750464646446,-3000.0,0.0002204,2]
[366804652,1750464646456,-3000.0,0.0002205,2]
[366804654,1750464646466,-590.1,0.0002205,10]
[366804656,1750464646476,-158.11374683,0.0002206,2]
[366804658,1750464646487,-258.82785065,0.0002206,2]
[366804660,1750464646497,-1180.60816773,0.0002206,2]
[366804663,1750464646515,-1819.39183227,0.0002206,2]
[366804665,1750464646525,-3000.0,0.0002207,2]
[366804667,1750464646536,-151.0,0.0002207,7]
[366804669,1750464646547,-568.28342666,0.0002208,2]
[366804863,1750464691321,200.0,0.00023561,120]
[366804869,1750464755741,7706.0,0.00023,30]
[366804873,1750464871173,200.0,0.00024187,120]
[366804877,1750464931200,200.0,0.00024345,120]
[366804890,1750465291286,200.0,0.0002394,120]
[366804893,1750465350818,200.0,0.00024564,120]
[366804895,1750465478364,163.545167,0.00013699,2]
[366804901,1750465531061,200.0,0.00023677,120]
[366804904,1750465590720,200.0,0.00024259,120]
[366804910,1750465710832,200.0,0.00024354,120]
[366804916,1750465720459,-964.0,0.000195,2]
[366804938,1750465830719,200.0,0.00024029,120]
[366805000,1750465832464,-36.0,0.000195,2]
[366805002,1750465832474,-150.17837614,0.0002,7]
[366805004,1750465832484,-721.6656812,0.00020704,2]
[366805006,1750465832493,-173.60953934,0.00021,2]
[366805009,1750465832503,-492.99993457,0.00021112,2]
[366805011,1750465832512,-327.74702767,0.00021112,2]
[366805013,1750465832522,-300.0,0.00021112,2]
[366805015,1750465832531,-10355.35028332,0.00021113,2]
[366805321,1750465838360,-14544.64971668,0.00021113,2]
[366805322,1750465838370,-250.0,0.0002188,2]
[366805323,1750465838379,-5000.0,0.000219,5]
[366805324,1750465838389,-1858.73069876,0.000219,6]
[366805325,1750465838399,-207.4,0.00021904,2]
[366805326,1750465838409,-523.92420239,0.00021909,2]
[366805327,1750465838419,-300.0,0.00021916,2]
[366805328,1750465838429,-213.51557418,0.00021916,2]
[366805329,1750465838439,-460.0,0.00021917,2]
[366805330,1750465838448,-182.69,0.00021917,2]
[366805331,1750465838458,-251.07335393,0.00021917,2]
[366805332,1750465838468,-460.0,0.00021917,2]
[366805333,1750465838477,-487.06,0.00021917,2]
[366805334,1750465838487,-460.0,0.00021917,2]
[366805335,1750465838497,-460.0,0.00021917,2]
[366805337,1750465838507,-460.0,0.00021917,2]
[366805338,1750465838516,-386.53261844,0.00022,2]
[366805339,1750465838525,-1858.73069866,0.00022038,6]
[366805340,1750465838535,-151.0,0.0002207,7]
[366805341,1750465838545,-151.0,0.0002207,7]
[366805342,1750465838555,-200.3351821,0.00022076,2]
[366805343,1750465838564,-460.0,0.00022078,2]
[366805344,1750465838573,-460.0,0.00022078,2]
[366805345,1750465838582,-460.0,0.00022078,2]
[366805346,1750465838592,-460.0,0.00022078,2]
[366805347,1750465838601,-460.0,0.00022078,2]
[366805348,1750465838611,-547.82,0.00022078,2]
[366805349,1750465838621,-500.0,0.00022078,2]
[366805350,1750465838630,-318.43772339,0.00022078,2]
[366805351,1750465838639,-460.0,0.00022079,2]
[366805352,1750465838649,-550.9,0.00022079,2]
[366805353,1750465838659,-460.0,0.00022079,2]
[366805354,1750465838668,-460.0,0.00022079,2]
[366805355,1750465838677,-460.0,0.00022079,2]
[366805356,1750465838688,-2431.71657334,0.0002208,2]
[366805357,1750465838698,-151.0,0.0002208,7]
[366805358,1750465838707,-151.0,0.0002208,7]
[366805359,1750465838717,-151.0,0.0002208,7]
[366805360,1750465838727,-189.776183,0.0002208,7]
[366805361,1750465838737,-189.776183,0.0002208,7]
[366805362,1750465838747,-160.0,0.00022115,2]
[366805363,1750465838757,-230.06456406,0.00022115,2]
[366805364,1750465838766,-424.85694595,0.00022115,2]
[366805365,1750465838776,-160.0,0.00022117,2]
[366805366,1750465838785,-836.27303475,0.00022117,2]
[366805367,1750465838795,-460.0,0.00022135,2]
[366805368,1750465838804,-261.38574815,0.00022135,2]
[366805369,1750465838814,-320.0,0.00022135,2]
[366805370,1750465838823,-460.0,0.00022135,2]
[366805371,1750465838832,-460.0,0.00022135,2]
[366805372,1750465838842,-460.0,0.00022135,2]
[366805373,1750465838852,-460.0,0.00022135,2]
[366805374,1750465838863,-460.0,0.00022135,2]
[366805375,1750465838873,-460.0,0.00022135,2]
[366805376,1750465838884,-297.24277214,0.00022144,2]
[366805377,1750465838893,-159.133,0.00022144,2]
[366805378,1750465838903,-1858.73069866,0.00022176,6]
[366805379,1750465838912,-460.0,0.00022191,2]
[366805380,1750465838922,-487.06,0.00022191,2]
[366805381,1750465838932,-460.0,0.00022191,2]
[366805382,1750465838942,-460.0,0.00022191,2]
[366805383,1750465838952,-460.0,0.00022191,2]
[366805384,1750465838962,-460.0,0.00022212,2]
[366805385,1750465838972,-688.85,0.00022212,2]
[366805386,1750465838981,-173.0,0.00022235,2]
[366805387,1750465838991,-152.82,0.000223,2]
[366805388,1750465839000,-1858.73069866,0.00022314,7]
[366805389,1750465839010,-169.08,0.00022352,2]
[366805390,1750465839020,-550.9,0.00022353,2]
[366805391,1750465839030,-460.0,0.00022353,2]
[366805392,1750465839040,-460.0,0.00022353,2]
[366805393,1750465839051,-460.0,0.00022353,2]
[366805394,1750465839060,-173.0,0.00022362,2]
[366805395,1750465839070,-846.08887863,0.00022367,2]
[366805396,1750465839079,-12546.90244252,0.00022367,2]
[366805397,1750465839089,-7987.47623672,0.00022367,2]
[366805398,1750465839099,-460.0,0.00022409,2]
[366805399,1750465839108,-151.0,0.00022421,7]
[366805400,1750465839118,-151.0,0.00022421,7]
[366805401,1750465839128,-1858.73069866,0.00022452,7]
[366805402,1750465839137,-151.0,0.00022465,7]
[366805403,1750465839147,-151.0,0.00022465,7]
[366805404,1750465839157,-189.776183,0.00022465,7]
[366805405,1750465839167,-189.776183,0.00022465,7]
[366805406,1750465839177,-460.0,0.00022465,2]
[366805407,1750465839186,-487.06,0.00022465,2]
[366805408,1750465839195,-460.0,0.00022465,2]
[366805409,1750465839205,-460.0,0.00022465,2]
[366805410,1750465839215,-460.0,0.00022465,2]
[366805411,1750465839224,-460.0,0.00022486,2]
[366805412,1750465839233,-688.85,0.00022486,2]
[366805413,1750465839243,-151.0,0.00022497,7]
[366805414,1750465839252,-151.0,0.00022497,7]
[366805415,1750465839262,-163.545167,0.00022505,2]
[366805416,1750465839272,-1858.73069866,0.0002259,7]
[366805417,1750465839282,-550.9,0.00022627,2]
[366805418,1750465839292,-460.0,0.00022627,2]
[366805419,1750465839302,-460.0,0.00022627,2]
[366805420,1750465839312,-156.84,0.00022627,2]
[366805421,1750465839321,-460.0,0.00022683,2]
[366805422,1750465839331,-1184.98088659,0.000227,2]
[366805423,1750465839341,-1858.73069866,0.00022728,7]
[366805424,1750465839352,-460.0,0.00022739,2]
[366805425,1750465839362,-487.06,0.00022739,2]
[366805426,1750465839372,-460.0,0.00022739,2]
[366805427,1750465839381,-460.0,0.00022739,2]
[366805428,1750465839519,-460.0,0.00022739,2]
[366805429,1750465839531,-191.0,0.00022741,2]
[366805430,1750465839541,-173.0,0.00022746,2]
[366805431,1750465839551,-173.0,0.00022747,2]
[366805432,1750465839562,-460.0,0.0002276,2]
[366805433,1750465839571,-688.85,0.0002276,2]
[366805434,1750465839582,-511.48217077,0.00022773,2]
[366805435,1750465839591,-500.0,0.00022773,2]
[366805436,1750465839602,-500.0,0.00022773,2]
[366805437,1750465839611,-505.81065277,0.00022773,2]
[366805438,1750465839621,-500.0,0.00022773,2]
[366805439,1750465839630,-509.77928341,0.00022773,2]
[366805440,1750465839640,-500.0,0.00022773,2]
[366805441,1750465839650,-500.0,0.00022773,2]
[366805442,1750465839660,-500.0,0.00022773,2]
[366805443,1750465839669,-151.0,0.00022773,7]